Cogmind - Beta 13 X1 @@@ ROGUE MODE // 2023.08.22 @ 00:27:53 Player: VR-DUX Result: Destroyed by G-47 Trooper with Particle Gun Performance ------------- Evolutions (2) 1000 Regions Visited (8) 1600 Robots Destroyed (89) 445 Value Destroyed (2561) 2561 Prototype IDs (32) 640 Alien Tech Used (0) 0 Bonus (680) 680 TOTAL SCORE: 6926 Bonus ------- High Alert Combat Kills 319 Follower Combat Kills 107 Aligned with FarCom 300 Friendly Fire -46 Cogmind --------- Core Integrity 0/550 Matter 241/300 Energy 32/100 System Corruption 0% Temperature Cool (9) Movement Treading (163) Location -8/Storage Parts ------- > --- POWER (1) -------- (None) > --- PROPULSION (4) --- Light Treads Light Treads Armored Treads > --- UTILITY (4) ------ Large Storage Unit Structural Scanner > --- WEAPON (2) ------- Flak Cannon > --- INVENTORY (15) --- Improved Ion Engine Armored Treads Cooled VTOL Module Medium Storage Unit Large Storage Unit Signal Interpreter Skeleton Box Enhanced Autogun Advanced EMP Blaster Rocket Launcher Ripper Peak State ------------ > --- POWER ------------ Light Nuclear Core > --- PROPULSION ------- Light Treads Light Treads Advanced Treads Cooled VTOL Module > --- UTILITY ---------- Improved Heat Sink Large Storage Unit Decoy Drone Bay > --- WEAPON ----------- Improved Assault Rifle Enhanced Autogun > --- INVENTORY -------- Light Nuclear Core Light Treads Light Treads Light Treads Light Treads Armored Treads Armored Treads Medium Storage Unit Large Storage Unit Signal Interpreter Skeleton Box Flak Cannon Rocket Launcher Ripper [Rating: 41] Favorites ----------- Power Improved Ion Engine Engine Improved Ion Engine Power Core Light Nuclear Core Propulsion Light Treads Treads Light Treads Leg Aluminum Leg Flight Unit Cooled VTOL Module Utility Large Storage Unit Device Improved Heat Sink Storage Large Storage Unit Processor Signal Interpreter Protection Improved Light Armor Plating Weapon Ion Cannon Energy Gun Spread Laser Energy Cannon Ion Cannon Ballistic Gun Heavy Assault Rifle Ballistic Cannon Flak Cannon Launcher Grenade Launcher Slashing Weapon Ripper Build | -11 -10 -10 -9 -9 -9 -8 -8 -8 ------- Run | Jun Mat Min Mat Min Exi Min Mat Sto Slots Evolved 4 | . . . 2 . . . 2 . Power . | . . . . . . . . . Propulsion 2 | . . . 1 . . . 1 . Utility 2 | . . . 1 . . . 1 . Weapon . | . . . . . . . . . Parts Attached 91 | . 7 2 28 3 . 2 5 44 Power 9 | . 1 . 3 . . . 1 4 Engine 6 | . 1 . 3 . . . 1 1 Core 3 | . . . . . . . . 3 Reactor . | . . . . . . . . . Propulsion 30 | . 2 . 9 . . . 3 16 Treads 29 | . 2 . 9 . . . 3 15 Leg . | . . . . . . . . . Wheel . | . . . . . . . . . Hover . | . . . . . . . . . Flight 1 | . . . . . . . . 1 Utility 17 | . 1 . 6 3 . . 1 6 Device 4 | . . . . 1 . . . 3 Storage 4 | . 1 . 2 . . . . 1 Processor 1 | . . . 1 . . . . . Hackware . | . . . . . . . . . Protection 8 | . . . 3 2 . . 1 2 Artifact . | . . . . . . . . . Weapon 35 | . 3 2 10 . . 2 . 18 Energy Gun 5 | . 1 . 1 . . . . 3 Energy Cannon 4 | . . . 1 . . . . 3 Ballistic Gun 12 | . 2 1 5 . . . . 4 Ballistic Cannon 1 | . . . . . . . . 1 Launcher 7 | . . 1 1 . . 1 . 4 Special Weapon . | . . . . . . . . . Impact Weapon . | . . . . . . . . . Slashing Weapon 6 | . . . 2 . . 1 . 3 Piercing Weapon . | . . . . . . . . . Special Melee Weapon . | . . . . . . . . . Unidentified Prototypes 9 | . . . . 1 . . . 8 Parts Lost 27 | . 5 1 4 . . . . 17 Power 5 | . 1 . . . . . . 4 Propulsion 13 | . 2 . 3 . . . . 8 Utility 2 | . . . . . . . . 2 Weapon 7 | . 2 1 1 . . . . 3 Highest Loss Streak 7 | . 5 1 3 . . . . 7 To Critical Strikes . | . . . . . . . . . Average Slot Usage (%) 88 | . 81 84 86 91 100 100 90 86 Engine 9 | . 14 14 11 11 11 11 9 2 Core 1 | . . . . . . . . 5 Treads 30 | . 12 28 29 33 33 33 32 32 Leg 1 | . 14 . . . . . . . Device 4 | . . . . 6 . . . 12 Storage 10 | . 14 14 11 11 11 11 9 9 Protection 8 | . . . 8 5 22 22 22 6 Energy Gun 1 | . 4 5 . . . . . . Energy Cannon 4 | . . . 5 11 11 7 . 3 Ballistic Gun 11 | . 21 13 10 11 11 11 9 9 Launcher 2 | . . 8 . . . . 9 2 Slashing Weapon 2 | . . . 4 . . 2 . 2 Naked Turns . | . . . . . . . . . Heaviest Build 52 | 12 29 29 43 50 42 42 42 52 Greatest Support 82 | 20 40 40 60 60 60 60 80 82 Greatest Overweight (x) 15 | . 1 . 1 . . . . 15 Average Overweight (x) . | . . . . . . . . . Largest Inventory Capacity 15 | . 15 15 15 15 15 15 15 15 Average Capacity 14 | . 13 15 15 15 15 15 15 15 Most Carried 15 | . 9 12 15 15 15 15 14 15 Average Carried 13 | . 6 10 13 14 14 15 12 13 Final Capacity 15 | 8 15 15 15 15 15 15 15 15 Final Carried 15 | 6 7 12 15 15 15 15 13 11 Class Distribution -------------------- 72% | Mutant 27% | Scavenger-Mutant Dominant Class ---------------- Mutant | -10/Materials Mutant | -10/Mines Mutant | -9/Materials Mutant | -9/Mines Mutant | -9/Exiles Mutant | -8/Mines Scavenger-Mutant | -8/Materials Scavenger-Mutant | -8/Storage Resources | -11 -10 -10 -9 -9 -9 -8 -8 -8 ----------- Run | Jun Mat Min Mat Min Exi Min Mat Sto Matter Collected 2078 | 200 151 44 482 16 . 29 59 1097 Remotely . | . . . . . . . . . Salvage Created 2943 | . 613 71 650 . . . 44 1565 Parts 191 | . 27 12 43 . . . . 109 Haulers Intercepted 7 | . 2 . . . . . 1 4 Recyclers Shooed 3 | . . . 1 . . . . 2 Parts Field Recycled . | . . . . . . . . . Retrieved Matter . | . . . . . . . . . Parts Self-Destructed . | . . . . . . . . . Prevented . | . . . . . . . . . Kills | -11 -10 -10 -9 -9 -9 -8 -8 -8 ------- Run | Jun Mat Min Mat Min Exi Min Mat Sto Combat Hostiles Destroyed 65 | . 8 8 12 1 . . . 36 Guns 35 | . 8 5 9 . . . . 13 Cannons 11 | . . . 2 1 . . . 8 AOE 19 | . . 3 1 . . . . 15 Classes Destroyed 12 | . 6 1 2 1 . . . 2 Worker 4 | . 2 1 . . . . . 1 Builder 6 | . 1 . 1 . . . . 4 Hauler 7 | . 2 . . . . . 1 4 Recycler 3 | . 2 . 1 . . . . . Mechanic 3 | . 1 . 1 . . . . 1 Watcher 1 | . . . 1 . . . . . Swarmer 14 | . . 8 . . . . . 6 Grunt 35 | . 8 . 8 . . . . 19 Duelist 1 | . . . . . . . . 1 Sentry 13 | . . . 4 . . . . 9 Demolisher 1 | . . . . 1 . . . . Hunter 1 | . . . . . . . . 1 Best Kill Streak 10 | . 8 4 6 1 . . 1 10 Combat Bots Only 10 | . 7 3 5 1 . . . 10 Max Kills in Single Turn 3 | . 2 2 2 1 . . 1 3 Gunslinging . | . . . . . . . . . Exploded 3 | . . 2 1 . . . . 3 Melee . | . . . . . . . . . Uniques/NPCs Destroyed . | . . . . . . . . . Combat | -11 -10 -10 -9 -9 -9 -8 -8 -8 -------- Run | Jun Mat Min Mat Min Exi Min Mat Sto Damage Taken 5649 | . 727 242 940 . . . 382 3358 Core 838 | . 80 63 134 . . . 58 503 Absorbed by Shields . | . . . . . . . . . Core Remaining (%) 69 | 100 . 42 . . . 66 . . Volleys Fired 306 | . 57 13 81 3 . 1 1 150 Largest 2 | . 2 2 2 2 . 1 1 2 Hottest 85 | . 85 85 83 83 . 23 30 85 Shots Fired 424 | . 90 22 99 6 . 1 1 205 Gun 352 | . 90 18 89 3 . 1 . 151 Cannon 46 | . . . 9 3 . . . 34 Launcher 26 | . . 4 1 . . . 1 20 Special . | . . . . . . . . . Kinetic 331 | . 77 9 86 3 . 1 . 155 Thermal 64 | . 13 9 9 3 . . . 30 Explosive 26 | . . 4 1 . . . 1 20 Electromagnetic 3 | . . . 3 . . . . . Robot Hit Streak 15 | . 11 3 11 2 . . 3 15 Robot Miss Streak 7 | . 5 7 2 1 . . . 4 Penetration Max . | . . . . . . . . . Secondary Targets 5 | . 3 1 . . . . . 1 Max Gunslinging Chain 1 | . 1 1 . . . . . 1 Shots Hit Robots 280 | . 66 13 68 2 . . 1 130 Core Hits 189 | . 43 18 24 2 . . 1 101 Critical Kills . | . . . . . . . . . Critical Parts Destroyed 1 | . . . 1 . . . . . Critical Strikes 2 | . . . 2 . . . . . Destroy 1 | . . . 1 . . . . . Corrupt 1 | . . . 1 . . . . . Melee Attacks 12 | . . . 1 . . 2 . 9 Impact . | . . . . . . . . . Slashing 12 | . . . 1 . . 2 . 9 Piercing . | . . . . . . . . . Sneak Attacks . | . . . . . . . . . Combat Hostiles . | . . . . . . . . . Follow-up Attacks . | . . . . . . . . . Damage Inflicted 6319 | . 695 329 1115 36 . . 43 4101 Guns 3329 | . 689 122 819 12 . . . 1687 Cannons 782 | . . . 163 24 . . . 595 Explosions 2197 | . . 207 133 . . . 43 1814 Melee . | . . . . . . . . . Ramming 11 | . 6 . . . . . . 5 Kinetic 3151 | . 513 24 799 12 . . . 1803 Thermal 940 | . 176 98 163 24 . . . 479 Explosive 2197 | . . 207 133 . . . 43 1814 Electromagnetic 20 | . . . 20 . . . . . Impact . | . . . . . . . . . Slashing . | . . . . . . . . . Piercing . | . . . . . . . . . Highest Corruption . | . . . . . . . . . Average Corruption . | . . . . . . . . . Corruption Purged . | . . . . . . . . . Corruption Blocked . | . . . . . . . . . Overload Shots . | . . . . . . . . . Overflow Damage 5 | . . 5 . . . . . . Projectiles . | . . . . . . . . . Explosions 5 | . . 5 . . . . . . Melee . | . . . . . . . . . Knockbacks 1 | . 1 . . . . . . . Impact 1 | . 1 . . . . . . . Kinetic . | . . . . . . . . . Secondary . | . . . . . . . . . Self-Inflicted Damage 300 | . . 78 . . . . 40 182 Shots 8 | . . 2 . . . . 1 5 Rammed . | . . . . . . . . . Targets Rammed 2 | . 1 . . . . . . 1 Kicked 1 | . 1 . . . . . . . Crushed 1 | . . . . . . . . 1 Highest Temperature 163 | . 160 140 162 27 . . . 163 Average Temperature 45 | . 38 59 47 12 . . . 52 Received Heat Transfer 2337 | . 405 . 456 . . . . 1476 Siege Activations . | . . . . . . . . . Robots Corrupted . | . . . . . . . . . Combat Hostiles . | . . . . . . . . . Parts Fried . | . . . . . . . . . Impact Corruptions . | . . . . . . . . . Robots Melted . | . . . . . . . . . Combat Hostiles . | . . . . . . . . . Parts Melted 1 | . . . 1 . . . . . Heat Transferred 1428 | . 235 120 259 37 . . . 777 Parts Sabotaged . | . . . . . . . . . Parts Stolen . | . . . . . . . . . Parts Stripped . | . . . . . . . . . Power Chain Reactions . | . . . . . . . . . Missiles Intercepted . | . . . . . . . . . Alert | -11 -10 -10 -9 -9 -9 -8 -8 -8 ------- Run | Jun Mat Min Mat Min Exi Min Mat Sto Peak Influence 779 | . 189 213 277 30 . 2 29 779 Initial 73 | . . 73 37 28 . . . 11 Average 192 | . 87 149 106 25 . . 9 442 Maximum Alert Level 3 | . . 1 1 . . . . 3 Low Security (%) 65 | . 100 42 88 100 . 100 100 23 Level 1 11 | . . 57 11 . . . . 5 Level 2 18 | . . . . . . . . 59 Level 3 3 | . . . . . . . . 12 Level 4 . | . . . . . . . . . Level 5 . | . . . . . . . . . High Security . | . . . . . . . . . Max Security . | . . . . . . . . . Squads Dispatched 11 | . . . . . . . . 11 Investigation 2 | . . . . . . . . 2 Extermination . | . . . . . . . . . Reinforcement 2 | . . . . . . . . 2 Assault 2 | . . . . . . . . 2 Garrison 5 | . . . . . . . . 5 Intercept . | . . . . . . . . . Searches Triggered . | . . . . . . . . . Construction Impeded 1 | . . . . . . . . 1 Haulers Reinforced . | . . . . . . . . . Active Scanning Responses . | . . . . . . . . . Cargo Convoy Interrupts . | . . . . . . . . . Stealth | -11 -10 -10 -9 -9 -9 -8 -8 -8 --------- Run | Jun Mat Min Mat Min Exi Min Mat Sto Distress Signals 9 | . 3 . 1 . . . . 5 Communications Jammed . | . . . . . . . . . Distress Signals . | . . . . . . . . . Times Spotted 92 | . 10 9 18 1 . . 2 52 Peak Tracking Total 8 | . 6 3 3 1 . . 1 8 Tactical Retreats 3 | . . 1 . . . . 1 1 Traps | -11 -10 -10 -9 -9 -9 -8 -8 -8 ------- Run | Jun Mat Min Mat Min Exi Min Mat Sto Traps Triggered 2 | . . . . . . . . 2 Indirectly . | . . . . . . . . . Trap Hack Attempts . | . . . . . . . . . Triggered . | . . . . . . . . . Disarmed . | . . . . . . . . . Reprogrammed . | . . . . . . . . . Reused . | . . . . . . . . . Traps Extracted . | . . . . . . . . . Installed . | . . . . . . . . . Triggered . | . . . . . . . . . Machines | -11 -10 -10 -9 -9 -9 -8 -8 -8 ---------- Run | Jun Mat Min Mat Min Exi Min Mat Sto Machines Disabled 6 | . . . 1 . . . . 5 Max in Single Turn 1 | . . . 1 . . . . 1 Machines Repaired . | . . . . . . . . . Machines Sabotaged . | . . . . . . . . . Overloaded Fab Kills . | . . . . . . . . . Hacking | -11 -10 -10 -9 -9 -9 -8 -8 -8 --------- Run | Jun Mat Min Mat Min Exi Min Mat Sto Machines Accessed 8 | . . . 2 1 2 . 1 2 Terminals 5 | . . . 2 . . . 1 2 Fabricators . | . . . . . . . . . Repair Stations . | . . . . . . . . . Recycling Units . | . . . . . . . . . Scanalyzers . | . . . . . . . . . Garrison Access . | . . . . . . . . . Total Hacks 12 | . . . 3 1 2 . 2 4 Successful 7 | . . . 1 1 2 . 1 2 Failed 5 | . . . 2 . . . 1 2 Catastrophic 2 | . . . 1 . . . . 1 Database Lockouts . | . . . . . . . . . Manual 3 | . . . . . 1 . 2 . Terminals 9 | . . . 3 . . . 2 4 Fabricators . | . . . . . . . . . Repair Stations . | . . . . . . . . . Recycling Units . | . . . . . . . . . Scanalyzers . | . . . . . . . . . Garrison Access . | . . . . . . . . . Terminal Hacks 7 | . . . 1 1 2 . 1 2 Record 1 | . . . . . 1 . . . Open Door 3 | . . . . 1 . . . 2 Branch Access Points 1 | . . . . . . . 1 . Zone Layout 1 | . . . 1 . . . . . Derelict Proto ID Bank 1 | . . . . . 1 . . . Fabricator Hacks . | . . . . . . . . . Repair Station Hacks . | . . . . . . . . . Recycling Unit Hacks . | . . . . . . . . . Scanalyzer . | . . . . . . . . . Garrison Access Hacks . | . . . . . . . . . Unauthorized Hacks . | . . . . . . . . . Terminals . | . . . . . . . . . Fabricators . | . . . . . . . . . Repair Stations . | . . . . . . . . . Recycling Units . | . . . . . . . . . Scanalyzers . | . . . . . . . . . Garrison Access . | . . . . . . . . . Data Cores Recovered . | . . . . . . . . . Used . | . . . . . . . . . Hacking Detections 4 | . . . 2 . . . . 2 Full Trace Events 1 | . . . . . . . . 1 Feedback Events . | . . . . . . . . . Feedback Blocked . | . . . . . . . . . Robot Schematics Acquired . | . . . . . . . . . Robots Built . | . . . . . . . . . Authchips . | . . . . . . . . . Time . | . . . . . . . . . Total Robot Build Rating . | . . . . . . . . . Part Schematics Acquired . | . . . . . . . . . Parts Built . | . . . . . . . . . Authchips . | . . . . . . . . . Time . | . . . . . . . . . Total Part Build Rating . | . . . . . . . . . Parts Repaired . | . . . . . . . . . Time . | . . . . . . . . . Parts Recycled . | . . . . . . . . . Recycled Matter . | . . . . . . . . . Retrieved Matter . | . . . . . . . . . Retrieved Components . | . . . . . . . . . Parts Scanalyzed . | . . . . . . . . . Part Schematics Acquired . | . . . . . . . . . Parts Damaged . | . . . . . . . . . Bothacking | -11 -10 -10 -9 -9 -9 -8 -8 -8 ------------ Run | Jun Mat Min Mat Min Exi Min Mat Sto Used RIF Installer . | . . . . . . . . . Robots Hacked . | . . . . . . . . . Non-combat . | . . . . . . . . . Combat . | . . . . . . . . . Robot Hacks Applied . | . . . . . . . . . Relay Couplers Released . | . . . . . . . . . Fabnet Peak Effective % . | . . . . . . . . . Robots Rewired . | . . . . . . . . . Allies Hacked . | . . . . . . . . . Hacks Repelled . | . . . . . . . . . Allies | -11 -10 -10 -9 -9 -9 -8 -8 -8 -------- Run | Jun Mat Min Mat Min Exi Min Mat Sto Total Allies 2 | . . . . . . . . 2 Largest Group 2 | . . . . . . . . 2 Highest-Rated Group 62 | . . . . . . . . 62 Highest-Rated Ally 31 | . . . . . . . . 31 Total Orders 10 | . . . . . . . . 10 ROAM 2 | . . . . . . . . 2 EXPLORE 8 | . . . . . . . . 8 Ally Attacks 24 | . . . . . . . . 24 Total Damage 311 | . . . . . . . . 311 Kills 3 | . . . . . . . . 3 Allies Corrupted . | . . . . . . . . . Allies Melted . | . . . . . . . . . Intel | -11 -10 -10 -9 -9 -9 -8 -8 -8 ------- Run | Jun Mat Min Mat Min Exi Min Mat Sto Robot Analysis Total . | . . . . . . . . . Derelict Logs Recovered 2 | . . 1 . 1 . . . . Drone Launches 16 | . . . . . . . . 16 Drone Recoveries . | . . . . . . . . . Exploration | -11 -10 -10 -9 -9 -9 -8 -8 -8 ------------- Run | Jun Mat Min Mat Min Exi Min Mat Sto Turns Passed 4812 | . 350 575 1040 483 366 432 180 1386 Spaces Moved 2336 | 1 130 333 477 282 220 255 106 532 Core 3 | . . . . . . . . 3 Treads 2245 | . 43 333 477 282 220 255 106 529 Legs 88 | 1 87 . . . . . . . Wheels . | . . . . . . . . . Hover . | . . . . . . . . . Flight . | . . . . . . . . . Fastest Speed 120 | 120 120 160 160 166 166 166 162 152 Average Speed 164 | 120 149 160 167 166 166 166 163 166 Slowest Speed 800 | 120 190 160 240 166 166 166 165 800 Overloaded Moves . | . . . . . . . . . Propulsion Burnouts . | . . . . . . . . . Robots Hopped . | . . . . . . . . . Cave-ins Triggered . | . . . . . . . . . Exploration Rate (%) 46 | 2 22 63 41 73 62 68 15 68 Regions Visited 8 Branch Regions 5 Pre-discovered Areas 1 | . . . . . 1 . . . Known Exits Taken 3 | . . . 1 . . 1 1 . Unknown Exits Taken 5 | 1 1 1 . 1 1 . . . Scrap Searched 4 | . . 2 . 1 . 1 . . Spaces Dug 18 | . . . 1 . . 2 . 15 Terrain Destroyed 199 | . . 27 8 . . 2 7 155 Melee 3 | . . . 1 . . 2 . . Projectile 2 | . . . . . . . . 2 AOE 194 | . . 27 7 . . . 7 153 Terrain Rammed . | . . . . . . . . . Walls Destroyed . | . . . . . . . . . Machines Disabled . | . . . . . . . . . Actions | -11 -10 -10 -9 -9 -9 -8 -8 -8 --------- Run | Jun Mat Min Mat Min Exi Min Mat Sto Total 2908 | . 207 354 622 292 221 259 111 842 Wait 88 | . 3 2 6 . . . . 77 Move 2328 | . 129 332 476 281 219 254 105 532 Hop . | . . . . . . . . . Pick Up 33 | . 8 5 12 . 1 . . 7 Fast Attach 31 | . . 1 8 3 . . . 19 Attach 22 | . 5 . 4 . . . 3 10 Detach 3 | . . . . 1 . . . 2 Swap 38 | . 2 1 16 . . 2 2 15 Drop 45 | . 2 . 18 4 1 . . 20 Fire 306 | . 57 13 81 3 . 1 1 150 Melee 12 | . . . 1 . . 2 . 9 Ram . | . . . . . . . . . Kick 1 | . 1 . . . . . . . Crush 1 | . . . . . . . . 1 Escape Stasis . | . . . . . . . . . Rewire . | . . . . . . . . . Trap . | . . . . . . . . . Miscellaneous . | . . . . . . . . . Route ------- -11/Junkyard -10/Materials -10/Mines -9/Materials (discovered 4 exits: *Mat x2 / *Min x2) -9/Mines (discovered 3 exits: *Mat x2 / *Exi) -9/Exiles (discovered 2 exits: [*Min x2]) -8/Mines -8/Materials (discovered 2 exits: *Sto x2) -8/Storage (discovered 1 exit: [*Fac]) History --------- Turn | Location | Event 1 | -11/Junkyard | Discovered new exit (range 0) 1 | -11/Junkyard | Entered Materials 51 | -10/Materials | Discovered new exit (range 6) 227 | -10/Materials | Lost 5 parts (1p2n2w) 247 | -10/Materials | Destroyed 7 combat bots 300 | -10/Materials | Build established: Mutant 351 | -10/Materials | Entered Mines 362 | -10/Mines | Met a Derelict bent on vengeance 526 | -10/Mines | A weapon hastily lodged in a ceiling crevice suddenly fell to the ground 590 | -10/Mines | Received a Rocket Launcher from a helpful Derelict 643 | -10/Mines | Learned 8 Materials zone layouts 876 | -10/Mines | Core integrity fell below 50% 916 | -10/Mines | Discovered new exit (range 6) 926 | -10/Mines | Entered Materials 926 | -9/Materials | Evolved 2 slots: Propulsion x1, Utility x1 927 | -9/Materials | Identified exit to Mines 927 | -9/Materials | Identified exit to Materials 1264 | -9/Materials | Lost 3 parts (2n1w) 1907 | -9/Materials | Discovered exit to Mines (range 9) 1966 | -9/Materials | Entered Mines 1967 | -9/Mines | Assembled infested the area 1968 | -9/Mines | Discovered exit to Materials (range 13) 2075 | -9/Mines | Found the Drone Emporium 2085 | -9/Mines | Found Prototype Device 2085 | -9/Mines | Identified Decoy Drone Bay 2339 | -9/Mines | Learned Materials terminal intel 2403 | -9/Mines | Discovered exit to Materials (range 12) 2441 | -9/Mines | Deemed a non-threat by the Exiles lab entrance 2442 | -9/Mines | Discovered new exit (range 5) 2449 | -9/Mines | Entered Exiles 2476 | -9/Exiles | Discovered new exit (range 15) 2494 | -9/Exiles | Met 8R-AWN 2518 | -9/Exiles | Met EX-HEX 2566 | -9/Exiles | Met EX-BIN 2589 | -9/Exiles | Aligned with FarCom system 2591 | -9/Exiles | Given EX-Vault access code 2629 | -9/Exiles | Opened EX-Vault 2641 | -9/Exiles | Found Skeleton Box 2677 | -9/Exiles | Warned to stay clear of 0b10 Research branches 2722 | -9/Exiles | Met EX-DEC 2735 | -9/Exiles | Learned location of Zion (-6) 2791 | -9/Exiles | Discovered new exit (range 14) 2815 | -9/Exiles | Left Exiles lab with Skeleton Box 2815 | -9/Exiles | Entered Mines 3229 | -8/Mines | Discovered exit to Materials (range 11) 3247 | -8/Mines | Entered Materials 3247 | -8/Materials | Evolved 2 slots: Propulsion x1, Utility x1 3248 | -8/Materials | Loaded intel: 12 terminal locations 3258 | -8/Materials | Identified exit to Storage 3427 | -8/Materials | Entered Storage 3680 | -8/Storage | Met a pair of Derelict thieves 3827 | -8/Storage | Destroyed 10 combat bots 3945 | -8/Storage | Build established: Scavenger-Mutant 4188 | -8/Storage | Garrison activated, responded to threat 4281 | -8/Storage | Discovered new exit (range 15) 4301 | -8/Storage | Garrison activated, responded to threat 4579 | -8/Storage | Core integrity fell below 50% 4760 | -8/Storage | Lost 3 parts (1p2n) 4790 | -8/Storage | Core integrity fell below 20% 4810 | -8/Storage | Garrison activated, responded to threat 4813 | -8/Storage | Destroyed by G-47 Trooper with Particle Gun Last Messages --------------- 04778_ G-47 Trooper heat short circuits Aluminum Leg. 04779_ M-28 Smith repairs G-47 Trooper. 04782_ Acquired Lgt. Nuclear Core. 04785_ M-28 Smith repairs Broken Aluminum Leg. 04786_ Acquired Imp. Ion Engine. 04787_ Acquired 44 matter. 04787_ M-28 Smith repairs Broken Aluminum Leg. 04793_ Imp. Assault Rifle destroyed. 04793_ Critical hit (Burn: +37). 04794_ Imp. Heat Sink destroyed. 04794_ G-47 Trooper destroyed. 04795_ K-01 Serf collects debris. 04797_ Lgt. Nuclear Core destroyed. 04798_ K-01 Serf collects debris. 04801_ Ion Cannon destroyed. 04803_ K-01 Serf collects debris. 04805_ Lgt. Treads destroyed. 04810_ K-01 Serf calls for garrison support. 04810_ ALERT: Activating Garrison Access S001. 04812_ G-47 Trooper destroyed. Map ----- +----------------------------------------------------+ | ?????????????????????????????????????????## ###? | | ?????????????????????????????????????????## < T#? | | ?????????????????????????????????????????## ""#? | | ?????????????????????????????????????????## ###? | | ?????????????????????????????????????######[ ##?? | | ?????????????????????????????????????###### ###? | | ?????????????????????????????????????## " ! ###? | | ??????????????????????????????????????### # ##? | | ???????????????????????????????????????### = ##? | | ???????????????????????????????????????## ##? | | ??????????????????????????????????????#####! [ ##? | | ????????????????????????????????????##### ! ##? | | ?????????????????????????????########### # ##? | | ?????????????????????????????######### # ##? | | ?????????????????????????????## ! [=###? | | ?????????????????????######??## = ##? | | ????????????????????########### != #### | | ????????????????????### #"T"### = = ### | | ??????????????????#### # =[= ## | | ??????????????????#### """" # [ [ ## | | ?????????????????? + """" # #!!=#### | | ????????????????????## """" ###+###### ! | | ????????????????????## =" " ### ###### # | | ????????????????????## ![ ### ### [ | | ????????????????????##% %[= ### ### "" | | ????????????????????## ! @% ### ### "" | | ???????????????????### =*%[ ### ### "" | | ???????????????????#######g#### # """ # | | ???????????????????## # """ | | ???????????????????## k T / """ # [ # | | ???????????????????## # # # | | #??????????????????###T######## #g"" ### | | #?######???????????############# ## gG" # #### | | ### ##???????????####?????### ## "" # #### | | # # #?????????????????????## ## # #### | | ##?????????????????????## ###### # # " | | % ##????????????????????## !######## # | | # == #????????????????????## !! + " | | # ! #????????????????????## !* ##T# | | + ##????????????????????## #### | | # ] #?????????????????????## % ############### | | ######+###????????????????????## %=#############?? | | !% # #########????????????## %###########???? | | [%= # # #! !!#???########### =# % #???? | | [ ###!!" ! #???? # %# """" #???? | | % # !! !#?????""" # # "!!"" #???? | | *+!!" #?????" """" # # "*[""" #???? | | % [ * # T# !!!#?????"!] [ %+ + "" %!" #???? | | +##### # # ! #?????"[""[" # # "=!" #???? | | #* # ######?????""""[" # *# """" #???? | +----------------------------------------------------+ Best States ------------- Heat Dissipation 45 Energy Generation 14 Energy Capacity 275 Matter Stores 300 Matter Capacity 300 Sight Range 16 Terrain Scan Density 10 Armor Coverage 600 Evasion (%) 55 Recoil Reduction 4 Item Schematics ----------------- None Robot Schematics ------------------ None Fabricated ------------ Nothing Alien Tech Used ----------------- None Achievements -------------- None Challenges ------------ None Game ------ Seed BehemothSubdwellerBoomstick Manual? 0 Play Time 00:59:02 Cumulative 68.0 hours Start 2023.08.21 @ 21:18:41 End 2023.08.22 @ 00:27:53 Sessions 3 Manual Loads 0 Difficulty Rogue Special Mode None Game No. 53 Rogue 53 Adventurer 0 Explorer 0 Win Type - Total 1 Types 1/0/0/0/0/0/0/0/0 Lore% 39 Gallery% 33 Achievement% 37 Wizard Run 0 Options --------- ASCII 0 Keyboard 0 Movement Mouse Keybinds 0 Fullscreen 1 Font 16/SmallcapsGlow Map View 84x54 Tactical HUD 1 Map Filters NONE Filters NONE Steam 1 RUN: fe1673d2-52f5-476c-98ce-bef02f2a6127